fUSD/lending_fUSD_20260521
["ID","MTS","AMOUNT","RATE_DAILY","PERIOD"]
[422750514,1779350802000,-154.9,0.000106,2]
[422750521,1779350945000,1000.0,0.00028766,120]
[422750528,1779351032000,-959.58057949,0.00014088,2]
[422750527,1779351032000,-589.20151572,0.00014088,2]
[422750550,1779351033000,-398.0,0.0002,2]
[422750551,1779351033000,-156.0,0.0002,2]
[422750553,1779351033000,-273.3,0.00020381,2]
[422750549,1779351033000,-592.0,0.0002,2]
[422750546,1779351033000,-209.0,0.0002,2]
[422750543,1779351033000,-150.0,0.00016438,2]
[422750548,1779351033000,-199.0,0.0002,2]
[422750547,1779351033000,-1266.0,0.0002,2]
[422750545,1779351033000,-273.3,0.0001841,2]
[422750544,1779351033000,-280.02619772,0.00016438,2]
[422750538,1779351033000,-300.0,0.0001523,2]
[422750534,1779351033000,-2500.0,0.00014426,2]
[422750539,1779351033000,-300.0,0.00015496,2]
[422750536,1779351033000,-300.0,0.0001523,2]
[422750537,1779351033000,-300.0,0.0001523,2]
[422750535,1779351033000,-2500.0,0.00014426,2]
[422750542,1779351033000,-150.0,0.00016438,2]
[422750541,1779351033000,-150.0,0.00016438,2]
[422750533,1779351033000,-2500.0,0.00014426,2]
[422750532,1779351033000,-2500.0,0.00014426,2]
[422750530,1779351033000,-300.0,0.00014257,2]
[422750529,1779351033000,-951.21790479,0.00014088,2]
[422750552,1779351033000,-152.18735834,0.0002,20]
[422750540,1779351033000,-273.3,0.00016438,2]
[422750564,1779351033000,-398.0,0.00021,2]
[422750531,1779351033000,-215.23956962,0.00014318,2]
[422750566,1779351033000,-156.0,0.00021,2]
[422750602,1779351033000,-18509.84149973,0.00021501,2]
[422750600,1779351033000,-96060.20129829,0.00021501,2]
[422750605,1779351033000,-50555.96118055,0.00021501,2]
[422750593,1779351033000,-500.0,0.000215,2]
[422750587,1779351033000,-737.26217592,0.00021401,2]
[422750589,1779351033000,-2000.0,0.00021401,2]
[422750595,1779351033000,-465.27487658,0.000215,2]
[422750585,1779351033000,-1354.0,0.00021376,2]
[422750591,1779351033000,-1376.1126,0.00021401,2]
[422750583,1779351033000,-3545.0,0.00021376,2]
[422750579,1779351033000,-243.871,0.00021376,2]
[422750598,1779351033000,-455.98378796,0.000215,2]
[422750577,1779351033000,-185.0,0.00021376,2]
[422750581,1779351033000,-927.0,0.00021376,2]
[422750569,1779351033000,-3634.0,0.0002112,2]
[422750571,1779351033000,-6058.0,0.0002112,2]
[422750554,1779351033000,-200.0,0.00020507,2]
[422750557,1779351033000,-209.0,0.00021,2]
[422750555,1779351033000,-257.69,0.00020724,2]
[422750558,1779351033000,-1266.0,0.00021,2]
[422750560,1779351033000,-199.0,0.00021,2]
[422750562,1779351033000,-592.0,0.00021,2]
[422750556,1779351033000,-689.28,0.00020823,2]
[422750573,1779351033000,-172.75,0.00021158,2]
[422750575,1779351033000,-169.22,0.0002128,2]
[422750620,1779351037000,-14781.71760849,0.00021501,2]
[422750619,1779351037000,-824.28239151,0.00021401,2]
[422750641,1779351042000,-22.58135078,0.00021501,2]
[422750643,1779351045000,-7541.67073879,0.00021501,2]
[422750644,1779351045000,-2481.75882646,0.00021501,2]
[422750645,1779351046000,-311.06851916,0.00021501,2]
[422750650,1779351048000,-930.74,0.00021501,2]
[422750651,1779351048000,-1158.53375916,0.00021501,2]
[422750654,1779351069000,500.0,0.00028724,120]
[422750656,1779351226000,1173.5,0.00028767,120]
[422750659,1779351418000,1040.0,0.00027473,120]
[422750660,1779351444000,150.0,0.00028667,120]
[422750662,1779351462000,150.97290772,0.00028767,120]
[422750663,1779351475000,150.0,0.00028624,120]
[422750664,1779351486000,150.0,0.00028667,120]
[422750665,1779351497000,150.0,0.00028667,120]
[422750666,1779351506000,150.0,0.00028667,120]
[422750668,1779351529000,593.51193604,0.00027854,120]
[422750681,1779351995000,500.0,0.00027854,120]
[422750682,1779352000000,500.0,0.00028315,120]
[422750685,1779352137000,161.0,0.000287,120]
[422750686,1779352140000,1000.0,0.00028766,120]
[422750695,1779352166000,-138.21836583,0.00014626,2]
[422750693,1779352166000,-2500.0,0.00014088,2]
[422750694,1779352166000,-618.5631469,0.00014088,2]
[422750691,1779352166000,-300.0,0.00014017,2]
[422750692,1779352166000,-150.0,0.00014087,2]
[422750689,1779352166000,-300.0,0.00014017,2]
[422750690,1779352166000,-300.0,0.00014017,2]
[422750687,1779352166000,-300.0,0.00013965,2]
[422750688,1779352166000,-250.0,0.00014,2]
[422750697,1779352232000,-2311.13293617,0.00014663,2]
[422750696,1779352232000,-2548.88041,0.00014626,2]
[422750699,1779352233000,-64.59836706,0.00014663,2]
[422750698,1779352233000,-188.86706383,0.00014663,2]
[422750700,1779352233000,-235.40163294,0.00014663,2]
[422750703,1779352233000,-441.62438819,0.000147,2]
[422750702,1779352233000,-365.90437581,0.000147,2]
[422750701,1779352233000,-36.504236,0.000147,2]
[422750706,1779352233000,-300.0,0.00014885,2]
[422750705,1779352233000,-2258.43726431,0.00014885,2]
[422750704,1779352233000,-241.56273569,0.00014885,2]
[422750714,1779352233000,-500.0,0.00014999,2]
[422750708,1779352233000,-500.0,0.00014999,2]
[422750709,1779352233000,-500.0,0.00014999,2]
[422750707,1779352233000,-300.0,0.00014885,2]
[422750710,1779352233000,-500.0,0.00014999,2]
[422750713,1779352233000,-500.0,0.00014999,2]
[422750712,1779352233000,-500.0,0.00014999,2]
[422750716,1779352233000,-51107.97295741,0.00015,2]
[422750715,1779352233000,-440.38631026,0.00014999,2]
[422750718,1779352233000,-811.50471421,0.00015,2]
[422750717,1779352233000,-65474.48536384,0.00015,2]
[422750711,1779352233000,-500.0,0.00014999,2]
[422750725,1779352237000,-3860.24994,0.00015,2]
[422750724,1779352237000,-557.49671702,0.00015,2]
[422750728,1779352238000,-760.11851838,0.00015,2]
[422750727,1779352238000,-1553.52,0.00015,2]
[422750726,1779352238000,-1872.89034925,0.00015,2]
[422750729,1779352238000,-6174.82959748,0.00015,2]
[422750733,1779352238000,-3367.62180875,0.00015,2]
[422750731,1779352238000,-535.41792625,0.00015,2]
[422750734,1779352238000,-55680.72046116,0.00015,2]
[422750732,1779352238000,-867.04626424,0.00015,2]
[422750730,1779352238000,-1076.55582393,0.00015,2]
[422750938,1779352240000,-652.08200092,0.00015,2]
[422750936,1779352240000,-209232.74843509,0.00015,2]
[422750965,1779352240000,-404.75,0.00015,2]
[422750977,1779352240000,-3046.82868942,0.00015,2]
[422750990,1779352240000,-300.13246974,0.00015,2]
[422750999,1779352240000,-311.98467859,0.00015,2]
[422750993,1779352240000,-2458.50849633,0.00015,2]
[422751002,1779352240000,-524.9326699,0.00015,2]
[422750974,1779352240000,-3162.65048305,0.00015,2]
[422751111,1779352246000,-276.10913689,0.00015,2]
[422751105,1779352246000,-1366.78574305,0.00015,2]
[422751109,1779352246000,-707.16647587,0.00015,2]
[422751110,1779352246000,-1668.73,0.00015,2]
[422751108,1779352246000,-370.45,0.00015,2]
[422751106,1779352246000,-14950.81141236,0.00015,2]
[422751107,1779352246000,-822.41952396,0.00015,2]
[422751112,1779352246000,-1155.78762411,0.00015,2]
[422751113,1779352246000,-2304.0,0.00015,2]
[422751142,1779352249000,-169.22,0.00019285,2]
[422751138,1779352249000,-500.0,0.00018274,2]
[422751141,1779352249000,-235.3,0.0001841,2]
[422751135,1779352249000,-350.0,0.00018,2]
[422751140,1779352249000,-195.79,0.00018367,2]
[422751137,1779352249000,-200.0,0.00018012,2]
[422751132,1779352249000,-500.0,0.00017808,2]
[422751134,1779352249000,-397.00175674,0.00017808,2]
[422751136,1779352249000,-1852.42,0.00018004,2]
[422751133,1779352249000,-500.0,0.00017808,2]
[422751131,1779352249000,-2366.43989684,0.000177,2]
[422751122,1779352249000,-300.0,0.00015323,2]
[422751126,1779352249000,-235.3,0.00016438,2]
[422751129,1779352249000,-2490.7480852,0.00017522,2]
[422751127,1779352249000,-172.75,0.00016698,2]
[422751128,1779352249000,-169.22,0.00017449,2]
[422751124,1779352249000,-2500.0,0.00016089,2]
[422751125,1779352249000,-300.0,0.00016089,2]
[422751123,1779352249000,-300.0,0.00016,2]
[422751121,1779352249000,-2366.4398969,0.000153,2]
[422751119,1779352249000,-1710.44407619,0.00015,2]
[422751139,1779352249000,-1710.44407617,0.00018363,2]
[422751120,1779352249000,-2490.7480852,0.000151,2]
[422751118,1779352249000,-352041.42111532,0.00015,2]
[422751130,1779352249000,-159.67,0.00017554,2]
[422751143,1779352249000,-200.0,0.00019573,2]
[422751154,1779352249000,-163.6703749,0.00019842,2]
[422751146,1779352249000,-200.0,0.00019773,2]
[422751171,1779352249000,-63.58687217,0.0002059,2]
[422751170,1779352249000,-235.3,0.00020381,2]
[422751169,1779352249000,-2366.43989684,0.000201,2]
[422751168,1779352249000,-360.0,0.0002,2]
[422751167,1779352249000,-156.0,0.0002,2]
[422751164,1779352249000,-558.0,0.0002,2]
[422751161,1779352249000,-202.0,0.0002,2]
[422751162,1779352249000,-1219.0,0.0002,2]
[422751166,1779352249000,-1000.0,0.0002,90]
[422751163,1779352249000,-193.0,0.0002,2]
[422751155,1779352249000,-1164.4250811,0.00019842,2]
[422751158,1779352249000,-7351.983951,0.00019842,2]
[422751165,1779352249000,-390.0,0.0002,2]
[422751160,1779352249000,-400.0,0.0002,2]
[422751144,1779352249000,-159.0,0.00019616,2]
[422751145,1779352249000,-200.0,0.00019773,2]
[422751147,1779352249000,-200.0,0.00019773,2]
[422751159,1779352249000,-2490.7480852,0.00019944,2]
[422751151,1779352249000,-200.0,0.00019799,2]
[422751148,1779352249000,-200.0,0.00019773,2]
[422751149,1779352249000,-200.0,0.00019773,2]
[422751150,1779352249000,-200.0,0.00019773,2]
[422751152,1779352249000,-15504.8601888,0.00019842,2]
[422751157,1779352249000,-64766.6330861,0.00019842,2]
[422751156,1779352249000,-18254.172159,0.00019842,2]
[422751153,1779352249000,-77398.5816237,0.00019842,2]
[422751174,1779352250000,-391.71166723,0.00021,2]
[422751172,1779352250000,-136.41312783,0.0002059,2]
[422751175,1779352250000,-720.59882208,0.00021,2]
[422751173,1779352250000,-202.0,0.00021,2]
[422751177,1779352250000,-193.0,0.00021,2]
[422751181,1779352250000,-156.0,0.00021,2]
[422751178,1779352250000,-15.42453847,0.00021,2]
[422751179,1779352250000,-542.57546153,0.00021,2]
[422751180,1779352250000,-390.0,0.00021,2]
[422751182,1779352250000,-64.28320188,0.00021,7]
[422751176,1779352250000,-106.68951069,0.00021,2]
[422751192,1779352311000,150.0,0.00028767,120]
[422751194,1779352415000,414.81,0.00027884,120]
[422751196,1779352493000,1632.0,0.00027651,120]
[422751198,1779352726000,5000.0,0.00028767,120]
[422751199,1779352873000,1001.7,0.0002876,120]
[422751200,1779353012000,6705.5,0.0002876,120]
[422751201,1779353341000,1000.0,0.00028766,120]
[422751202,1779353348000,-170.08,8.947e-05,2]
[422751204,1779353348000,-150.0,9.758e-05,2]
[422751205,1779353348000,-28.5959988,0.00010666,2]
[422751203,1779353348000,-150.0,9.662e-05,2]
[422751220,1779353432000,-1200.0,0.00014998,2]
[422751222,1779353432000,-500.0,0.00014999,2]
[422751228,1779353432000,-500.0,0.00014999,2]
[422751223,1779353432000,-500.0,0.00014999,3]
[422751230,1779353432000,-179.52,0.00015433,2]
[422751226,1779353432000,-500.0,0.00014999,2]
[422751219,1779353432000,-150.0,0.00014998,2]
[422751229,1779353432000,-1084.77,0.0001505,2]
[422751221,1779353432000,-300.0,0.00014998,2]
[422751218,1779353432000,-1200.0,0.00014997,2]
[422751214,1779353432000,-1305.6,0.00014687,2]
[422751217,1779353432000,-213.69327283,0.00014969,2]
[422751216,1779353432000,-152.36,0.00014965,2]
[422751211,1779353432000,-250.0,0.00014,2]
[422751213,1779353432000,-170.6,0.00014544,2]
[422751215,1779353432000,-209.04079427,0.00014865,2]
[422751212,1779353432000,-170.08,0.00014104,2]
[422751224,1779353432000,-500.0,0.00014999,4]
[422751210,1779353432000,-173.90336559,0.00012807,5]
[422751209,1779353432000,-357.6233211,0.00012457,2]
[422751207,1779353432000,-141.4840012,0.00010666,2]
[422751208,1779353432000,-170.08,0.00012385,2]
[422751227,1779353432000,-500.0,0.00014999,2]
[422751225,1779353432000,-500.0,0.00014999,2]
[422751231,1779353432000,-209.04079427,0.00015659,2]
[422751276,1779353432000,-301.72161463,0.00016552,2]
[422751270,1779353432000,-45346.15548295,0.00016552,2]
[422751232,1779353432000,-500.0,0.00015711,2]
[422751265,1779353432000,-199.77531074,0.00016551,2]
[422751267,1779353432000,-2058.8322256,0.00016552,2]
[422751273,1779353432000,-21520.54590524,0.00016552,2]
[422751261,1779353432000,-500.0,0.00016551,2]
[422751263,1779353432000,-500.0,0.00016551,2]
[422751259,1779353432000,-500.0,0.00016551,2]
[422751257,1779353432000,-812.83363836,0.00016551,2]
[422751254,1779353432000,-1305.6,0.00016523,2]
[422751279,1779353432000,-857.03856977,0.00016552,2]
[422751249,1779353432000,-209.04079427,0.00016452,2]
[422751239,1779353432000,-150.0,0.00016123,2]
[422751241,1779353432000,-200.0,0.0001624,2]
[422751237,1779353432000,-170.6,0.00016075,2]
[422751250,1779353432000,-2867.55782113,0.00016452,2]
[422751235,1779353432000,-300.0,0.00016,2]
[422751247,1779353432000,-385.2,0.00016438,2]
[422751245,1779353432000,-420.0,0.00016415,2]
[422751243,1779353432000,-157.54,0.00016401,2]
[422751233,1779353432000,-170.08,0.00015823,2]
[422751252,1779353432000,-1680.0,0.00016497,2]
[422751282,1779353438000,-713.71647197,0.00016552,2]
[422751284,1779353438000,-1170.75638054,0.00016552,2]
[422751283,1779353438000,-548.30220745,0.00016552,2]
[422751287,1779353438000,-1800.69231806,0.00016552,2]
[422751286,1779353438000,-1319.5631148,0.00016552,2]
[422751288,1779353438000,-10391.57037895,0.00016552,2]
[422751285,1779353438000,-8536.0698224,0.00016552,2]
[422751297,1779353440000,-1418.94416673,0.00016552,2]
[422751298,1779353440000,-595.85768052,0.00016552,2]
[422751293,1779353440000,-9009.66189395,0.00016552,2]
[422751296,1779353440000,-5155.31062132,0.00016552,2]
[422751295,1779353440000,-15996.19599818,0.00016552,2]
[422751294,1779353440000,-4516.68000184,0.00016552,2]
[422751292,1779353440000,-380.30947352,0.00016552,2]
[422751291,1779353440000,-2874.02810723,0.00016552,2]
[422751290,1779353440000,-41730.120869,0.00016552,2]
[422751315,1779353443000,-11624.31605211,0.00016552,2]
[422751314,1779353443000,-968.38065445,0.00016552,2]
[422751316,1779353443000,-290.0,0.00016552,2]
[422751328,1779353443000,-599.22474281,0.00016552,2]
[422751319,1779353443000,-1131.17674813,0.00016552,2]
[422751318,1779353443000,-4520.9116674,0.00016552,2]
[422751317,1779353443000,-5699.75148114,0.00016552,2]
[422751372,1779353446000,-3110.30451518,0.00016552,2]
[422751373,1779353446000,-3267.53507715,0.00016552,2]
[422751374,1779353446000,-632.84589637,0.00016552,2]
[422751375,1779353446000,-14798.33215691,0.00016552,2]
[422751376,1779353446000,-258.7435581,0.00016552,2]
[422751380,1779353446000,-292.0,0.00017333,2]
[422751378,1779353446000,-13690.6291193,0.00016552,2]
[422751379,1779353446000,-4920.6032715,0.00016552,2]
[422751382,1779353446000,-170.08,0.00017543,2]
[422751381,1779353446000,-246.0,0.00017333,2]
[422751377,1779353446000,-873.3188108,0.00016552,2]
[422751429,1779353447000,-151.0,0.00018973,2]
[422751435,1779353447000,-151.0,0.00018973,2]
[422751431,1779353447000,-151.0,0.00018973,2]
[422751433,1779353447000,-500.0,0.00018973,2]
[422751432,1779353447000,-151.0,0.00018973,2]
[422751425,1779353447000,-151.0,0.00018973,2]
[422751430,1779353447000,-500.0,0.00018973,2]
[422751428,1779353447000,-151.0,0.00018973,2]
[422751415,1779353447000,-500.0,0.00018973,2]
[422751423,1779353447000,-151.0,0.00018973,2]
[422751427,1779353447000,-500.0,0.00018973,2]
[422751434,1779353447000,-151.0,0.00018973,2]
[422751436,1779353447000,-500.0,0.00018973,2]
[422751443,1779353447000,-151.0,0.00018973,2]
[422751438,1779353447000,-151.0,0.00018973,2]
[422751437,1779353447000,-151.0,0.00018973,2]
[422751441,1779353447000,-151.0,0.00018973,2]
[422751442,1779353447000,-500.0,0.00018973,2]
[422751419,1779353447000,-151.0,0.00018973,2]
[422751452,1779353447000,-151.0,0.00018973,2]
[422751451,1779353447000,-500.0,0.00018973,2]
[422751445,1779353447000,-500.0,0.00018973,2]
[422751440,1779353447000,-151.0,0.00018973,2]
[422751444,1779353447000,-151.0,0.00018973,2]
[422751446,1779353447000,-151.0,0.00018973,2]
[422751448,1779353447000,-500.0,0.00018973,2]
[422751449,1779353447000,-151.0,0.00018973,2]
[422751439,1779353447000,-500.0,0.00018973,2]
[422751417,1779353447000,-151.0,0.00018973,2]
[422751407,1779353447000,-151.0,0.00018973,2]
[422751421,1779353447000,-500.0,0.00018973,2]
[422751384,1779353447000,-2351.0,0.00018146,2]
[422751383,1779353447000,-432.0,0.00017965,2]
[422751385,1779353447000,-500.0,0.00018147,2]
[422751387,1779353447000,-500.0,0.00018147,2]
[422751386,1779353447000,-251.89775454,0.00018147,2]
[422751390,1779353447000,-1000.0,0.000182,2]
[422751389,1779353447000,-500.0,0.00018147,2]
[422751393,1779353447000,-2867.5578211,0.00018692,2]
[422751391,1779353447000,-1305.6,0.00018359,2]
[422751388,1779353447000,-424.68531923,0.00018147,2]
[422751392,1779353447000,-385.2,0.0001841,2]
[422751447,1779353447000,-151.0,0.00018973,2]
[422751405,1779353447000,-151.0,0.00018973,2]
[422751413,1779353447000,-151.0,0.00018973,2]
[422751396,1779353447000,-500.0,0.00018973,2]
[422751401,1779353447000,-151.0,0.00018973,2]
[422751400,1779353447000,-151.0,0.00018973,2]
[422751399,1779353447000,-151.0,0.00018973,2]
[422751398,1779353447000,-151.0,0.00018973,2]
[422751397,1779353447000,-200.0,0.00018973,2]
[422751404,1779353447000,-151.0,0.00018973,2]
[422751402,1779353447000,-500.0,0.00018973,2]
[422751403,1779353447000,-151.0,0.00018973,2]
[422751406,1779353447000,-500.0,0.00018973,2]
[422751408,1779353447000,-151.0,0.00018973,2]
[422751409,1779353447000,-1734.62772924,0.00018973,2]
[422751411,1779353447000,-151.0,0.00018973,2]
[422751410,1779353447000,-500.0,0.00018973,2]
[422751394,1779353447000,-9380.54,0.0001872,2]
[422751450,1779353447000,-151.0,0.00018973,2]
[422751395,1779353447000,-2707.00424192,0.00018873,2]
[422751465,1779353447000,-191.87295522,0.00019178,2]
[422751497,1779353447000,-769.0,0.0002,2]
[422751496,1779353447000,-287.0,0.0002,2]
[422751494,1779353447000,-330.0,0.0002,2]
[422751498,1779353447000,-166.0,0.0002,2]
[422751495,1779353447000,-1819.0,0.0002,2]
[422751501,1779353447000,-200.0,0.00020069,2]
[422751511,1779353447000,-2867.5578211,0.00020932,2]
[422751503,1779353447000,-1865.36488656,0.00020069,2]
[422751502,1779353447000,-157.6981513,0.00020069,2]
[422751500,1779353447000,-156.0,0.0002,2]
[422751504,1779353447000,-1305.6,0.00020194,2]
[422751506,1779353447000,-157.54,0.00020501,2]
[422751508,1779353447000,-1934.38338736,0.00020617,2]
[422751492,1779353447000,-169.33,0.00019987,2]
[422751505,1779353447000,-385.2,0.00020381,2]
[422751509,1779353447000,-161.0,0.000209,10]
[422751507,1779353447000,-202.83412412,0.00020617,2]
[422751512,1779353447000,-96.71679812,0.00021,7]
[422751515,1779353447000,-1819.0,0.00021,2]
[422751514,1779353447000,-330.0,0.00021,2]
[422751516,1779353447000,-287.0,0.00021,2]
[422751513,1779353447000,-153.0,0.00021,2]
[422751517,1779353447000,-769.0,0.00021,2]
[422751518,1779353447000,-521.0,0.00021,2]
[422751519,1779353447000,-156.0,0.00021,2]
[422751521,1779353447000,-153.0,0.00021,2]
[422751522,1779353447000,-153.0,0.00021,2]
[422751454,1779353447000,-151.0,0.00018973,2]
[422751510,1779353447000,-500.0,0.000209,2]
[422751493,1779353447000,-151.0,0.0002,2]
[422751520,1779353447000,-153.0,0.00021,2]
[422751490,1779353447000,-187.0,0.00019961,2]
[422751491,1779353447000,-169.33,0.00019987,2]
[422751453,1779353447000,-151.0,0.00018973,2]
[422751468,1779353447000,-206.33422798,0.00019178,2]
[422751471,1779353447000,-221.88543241,0.00019178,2]
[422751470,1779353447000,-213.96859442,0.00019178,2]
[422751472,1779353447000,-230.09519341,0.00019178,2]
[422751458,1779353447000,-500.0,0.00018973,2]
[422751456,1779353447000,-151.0,0.00018973,2]
[422751463,1779353447000,-185.02695778,0.00019178,2]
[422751461,1779353447000,-177.97,0.00019107,2]
[422751473,1779353447000,-238.60871557,0.00019178,2]
[422751474,1779353447000,-247.43723804,0.00019178,2]
[422751476,1779353447000,-266.08633524,0.00019178,2]
[422751485,1779353447000,-151.0,0.00019521,2]
[422751467,1779353447000,-198.97225456,0.00019178,2]
[422751478,1779353447000,-286.14099624,0.00019178,2]
[422751475,1779353447000,-256.59241585,0.00019178,2]
[422751489,1779353447000,-500.0,0.00019841,2]
[422751488,1779353447000,-526.97687674,0.00019841,5]
[422751481,1779353447000,-319.09232173,0.00019178,2]
[422751483,1779353447000,-179.52,0.00019292,2]
[422751482,1779353447000,-500.0,0.00019247,2]
[422751499,1779353447000,-521.0,0.0002,2]
[422751484,1779353447000,-200.0,0.00019521,2]
[422751487,1779353447000,-271.769807,0.0001978,2]
[422751479,1779353447000,-296.7282131,0.00019178,2]
[422751477,1779353447000,-275.93152964,0.00019178,2]
[422751486,1779353447000,-1798.80895522,0.00019521,2]
[422751480,1779353447000,-307.70715698,0.00019178,2]
[422751562,1779353448000,-152.0,0.00021719,2]
[422751572,1779353448000,-578.20924308,0.00021719,2]
[422751564,1779353448000,-151.0,0.00021719,2]
[422751561,1779353448000,-152.0,0.00021719,2]
[422751551,1779353448000,-150.0,0.00021501,2]
[422751550,1779353448000,-500.0,0.000215,2]
[422751548,1779353448000,-500.0,0.000215,2]
[422751558,1779353448000,-152.0,0.00021719,2]
[422751563,1779353448000,-279.9045709,0.00021719,2]
[422751555,1779353448000,-2080.17592889,0.00021713,2]
[422751549,1779353448000,-500.0,0.000215,2]
[422751556,1779353448000,-152.0,0.00021719,2]
[422751568,1779353448000,-200.0,0.00021719,2]
[422751566,1779353448000,-5831.74499989,0.00021719,2]
[422751565,1779353448000,-1191.11104074,0.00021719,2]
[422751570,1779353448000,-443.6968442,0.00021719,2]
[422751569,1779353448000,-174.61919141,0.00021719,2]
[422751571,1779353448000,-174.61919141,0.00021719,2]
[422751584,1779353448000,-500.0,0.00021817,2]
[422751574,1779353448000,-174.61919141,0.00021719,2]
[422751575,1779353448000,-601.3376128,0.00021719,2]
[422751573,1779353448000,-174.61919141,0.00021719,2]
[422751577,1779353448000,-578.20924308,0.00021719,2]
[422751578,1779353448000,-174.61919141,0.00021719,2]
[422751554,1779353448000,-505.04329936,0.00021712,2]
[422751580,1779353448000,-152.0,0.00021719,2]
[422751567,1779353448000,-152.0,0.00021719,2]
[422751560,1779353448000,-152.0,0.00021719,2]
[422751536,1779353448000,-500.0,0.000214,2]
[422751547,1779353448000,-601481.1514,0.00021401,2]
[422751579,1779353448000,-152.0,0.00021719,2]
[422751523,1779353448000,-153.0,0.00021,2]
[422751535,1779353448000,-500.0,0.000214,2]
[422751530,1779353448000,-171.83578,0.000214,2]
[422751529,1779353448000,-2385.0,0.00021273,2]
[422751527,1779353448000,-1084.77,0.0002107,2]
[422751533,1779353448000,-500.0,0.000214,2]
[422751526,1779353448000,-200.0,0.0002103,2]
[422751528,1779353448000,-2005.9555727,0.00021165,2]
[422751524,1779353448000,-153.0,0.00021,2]
[422751532,1779353448000,-2599.37688494,0.000214,2]
[422751531,1779353448000,-387.48948996,0.000214,2]
[422751559,1779353448000,-156.60144302,0.00021719,2]
[422751525,1779353448000,-154.254156,0.00021,2]
[422751538,1779353448000,-500.0,0.000214,2]
[422751540,1779353448000,-500.0,0.000214,2]
[422751539,1779353448000,-500.0,0.000214,2]
[422751546,1779353448000,-305.48728569,0.000214,2]
[422751541,1779353448000,-500.0,0.000214,2]
[422751542,1779353448000,-500.0,0.000214,2]
[422751545,1779353448000,-500.0,0.000214,2]
[422751543,1779353448000,-500.0,0.000214,2]
[422751544,1779353448000,-500.0,0.000214,2]
[422751553,1779353448000,-2707.00424187,0.00021642,2]
[422751552,1779353448000,-350.0,0.00021609,5]
[422751557,1779353448000,-152.0,0.00021719,2]
[422751537,1779353448000,-500.0,0.000214,2]
[422751576,1779353448000,-152.0,0.00021719,2]
[422751534,1779353448000,-500.0,0.000214,2]
[422751583,1779353448000,-151.0,0.00021774,2]
[422751611,1779353448000,-1305.6,0.0002203,2]
[422751614,1779353448000,-166.48687458,0.00022104,2]
[422751613,1779353448000,-2000.0,0.000221,2]
[422751615,1779353448000,-352.91722476,0.00022161,5]
[422751619,1779353448000,-290.26104002,0.00022267,2]
[422751631,1779353448000,-1680.05309,0.0002242,2]
[422751621,1779353448000,-196.57816434,0.00022267,2]
[422751620,1779353448000,-1235.18214925,0.00022267,2]
[422751624,1779353448000,-181.08010149,0.00022267,2]
[422751622,1779353448000,-200.0,0.00022267,2]
[422751623,1779353448000,-181.08010149,0.00022267,2]
[422751626,1779353448000,-599.60298507,0.00022267,2]
[422751618,1779353448000,-2157.14243826,0.00022261,2]
[422751629,1779353448000,-1680.0531,0.000224,2]
[422751630,1779353448000,-1680.05309,0.000224,2]
[422751625,1779353448000,-181.08010149,0.00022267,2]
[422751627,1779353448000,-385.2,0.00022353,2]
[422751634,1779353448000,-1680.05309,0.0002242,2]
[422751633,1779353448000,-1680.05309,0.0002242,2]